[Event "*** Titled Tuesday 3|2 Blitz"]
[Site "Chess.com"]
[Date "2017.06.06"]
[Round "2"]
[White "AdrianaNikolova"]
[Black "Paul66666"]
[Result "0-1"]
[WhiteElo "2317"]
[BlackElo "2566"]
[TimeControl "180+2"]
[EndTime "14:17:47 PDT"]
[Termination "Paul66666 won by resignation"]

1. e4 {[%clk 0:03:02]} 1... c5 {[%clk 0:03:00.4]} 2. Nf3 {[%clk 0:03:00]} 2...
d6 {[%clk 0:03:01.4]} 3. d4 {[%clk 0:02:57.9]} 3... Nf6 {[%clk 0:03:02.4]} 4.
Nc3 {[%clk 0:02:55]} 4... cxd4 {[%clk 0:03:03.3]} 5. Nxd4 {[%clk 0:02:56.9]}
5... Nc6 {[%clk 0:03:05]} 6. Bg5 {[%clk 0:02:56.6]} 6... e6 {[%clk 0:03:06.1]}
7. Qd2 {[%clk 0:02:54.5]} 7... a6 {[%clk 0:03:06.8]} 8. f4 {[%clk 0:02:55.4]}
8... h6 {[%clk 0:02:58.4]} 9. Bh4 {[%clk 0:02:55.7]} 9... Nxe4 {[%clk
0:02:58.3]} 10. Nxe4 {[%clk 0:02:46.4]} 10... Qxh4+ {[%clk 0:02:57.8]} 11. g3
{[%clk 0:02:47.8]} 11... Qd8 {[%clk 0:02:57.2]} 12. O-O-O {[%clk 0:02:48]} 12...
d5 {[%clk 0:02:54.2]} 13. Nc3 {[%clk 0:02:46.3]} 13... Bb4 {[%clk 0:02:52]} 14.
a3 {[%clk 0:02:45]} 14... Ba5 {[%clk 0:02:50.4]} 15. Nb3 {[%clk 0:02:45.5]}
15... Bb6 {[%clk 0:02:38]} 16. f5 {[%clk 0:02:45]} 16... O-O {[%clk 0:02:36.3]}
17. Bh3 {[%clk 0:02:41.4]} 17... d4 {[%clk 0:02:33.1]} 18. Ne2 {[%clk
0:02:30.2]} 18... e5 {[%clk 0:02:04.2]} 19. g4 {[%clk 0:02:30.6]} 19... a5
{[%clk 0:01:57.3]} 20. Qd3 {[%clk 0:02:18]} 20... Qd5 {[%clk 0:01:39.1]} 21. c4
{[%clk 0:01:40.2]} 21... Qd8 {[%clk 0:01:20.3]} 22. Ng3 {[%clk 0:01:40.5]} 22...
Qh4 {[%clk 0:01:07.6]} 23. Nh5 {[%clk 0:01:39.9]} 23... e4 {[%clk 0:00:57.5]}
24. Qg3 {[%clk 0:01:39.5]} 24... Qg5+ {[%clk 0:00:50.3]} 25. Kb1 {[%clk
0:01:18.5]} 25... e3 {[%clk 0:00:44.8]} 26. c5 {[%clk 0:01:13.7]} 26... a4
{[%clk 0:00:45.1]} 27. Nxd4 {[%clk 0:01:00.4]} 27... Nxd4 {[%clk 0:00:40.4]} 28.
cxb6 {[%clk 0:00:49.8]} 28... Nxf5 {[%clk 0:00:28.6]} 29. gxf5 {[%clk
0:00:41.4]} 29... Qxh5 {[%clk 0:00:29.7]} 30. Rhg1 {[%clk 0:00:30.4]} 30...
Bxf5+ {[%clk 0:00:30.2]} 31. Bxf5 {[%clk 0:00:22.7]} 31... Qxf5+ {[%clk
0:00:30.4]} 32. Ka1 {[%clk 0:00:24.6]} 32... g6 {[%clk 0:00:31.2]} 33. Qxe3
{[%clk 0:00:25.5]} 33... Kh7 {[%clk 0:00:30.9]} 34. Rdf1 {[%clk 0:00:25.5]}
34... Qe6 {[%clk 0:00:29.8]} 35. Qc5 {[%clk 0:00:18.1]} 35... Rac8 {[%clk
0:00:27.5]} 36. Qb4 {[%clk 0:00:17.4]} 36... Rfe8 {[%clk 0:00:16.9]} 37. Qxa4
{[%clk 0:00:15.1]} 37... Rc6 {[%clk 0:00:17]} 38. Qb4 {[%clk 0:00:14.6]} 38...
Rxb6 {[%clk 0:00:16]} 39. Rxf7+ {[%clk 0:00:10.8]} 39... Qxf7 {[%clk 0:00:17.9]}
40. Qxb6 {[%clk 0:00:11.3]} 40... Re2 {[%clk 0:00:18.9]} 41. Rc1 {[%clk
0:00:08.9]} 41... Rf2 {[%clk 0:00:17.9]} 42. Rd1 {[%clk 0:00:06.8]} 42... Rf1
{[%clk 0:00:17.7]} 43. Rxf1 {[%clk 0:00:06.9]} 43... Qxf1+ {[%clk 0:00:19.6]}
44. Ka2 {[%clk 0:00:08.4]} 44... Qf7+ {[%clk 0:00:21.5]} 45. Kb1 {[%clk
0:00:08.7]} 45... h5 {[%clk 0:00:21.7]} 46. a4 {[%clk 0:00:09.2]} 46... g5
{[%clk 0:00:22.9]} 47. Qb5 {[%clk 0:00:08.7]} 47... g4 {[%clk 0:00:20.8]} 48.
Ka1 {[%clk 0:00:07]} 48... Kg6 {[%clk 0:00:20.4]} 49. Qd3+ {[%clk 0:00:08.1]}
49... Qf5 {[%clk 0:00:20.1]} 50. Qd6+ {[%clk 0:00:09.2]} 50... Qf6 {[%clk
0:00:19.5]} 51. Qd3+ {[%clk 0:00:10.4]} 51... Kg5 {[%clk 0:00:20.5]} 52. Qe3+
{[%clk 0:00:09.9]} 52... Kg6 {[%clk 0:00:18.9]} 53. Qd3+ {[%clk 0:00:10.6]}
53... Kh6 {[%clk 0:00:19.5]} 54. Qe3+ {[%clk 0:00:10.9]} 54... Kg7 {[%clk
0:00:20.6]} 55. Qc5 {[%clk 0:00:09.9]} 55... Qf1+ {[%clk 0:00:18.5]} 56. Ka2
{[%clk 0:00:09.8]} 56... Qf7+ {[%clk 0:00:20.4]} 57. Ka1 {[%clk 0:00:10.9]}
57... Kg6 {[%clk 0:00:20]} 58. Qc2+ {[%clk 0:00:10.9]} 58... Qf5 {[%clk
0:00:19.3]} 59. Qc7 {[%clk 0:00:11.6]} 59... h4 {[%clk 0:00:20]} 60. Qxb7 {[%clk
0:00:11.7]} 60... g3 {[%clk 0:00:17.7]} 61. hxg3 {[%clk 0:00:13.6]} 61... hxg3
{[%clk 0:00:19.6]} 62. Qb6+ {[%clk 0:00:13.4]} 62... Kg5 {[%clk 0:00:20.7]} 63.
Qe3+ {[%clk 0:00:13.6]} 63... Kg4 {[%clk 0:00:21.3]} 64. Qe2+ {[%clk 0:00:12.4]}
64... Qf3 {[%clk 0:00:21.6]} 65. Qe6+ {[%clk 0:00:12.9]} 65... Kf4 {[%clk
0:00:22.8]} 66. Qf7+ {[%clk 0:00:12.1]} 66... Ke3 {[%clk 0:00:24.7]} 67. Qb3+
{[%clk 0:00:09.8]} 67... Kf2 {[%clk 0:00:26]} 68. Qc2+ {[%clk 0:00:10.9]} 68...
Kg1 {[%clk 0:00:25.9]} 69. Qc5+ {[%clk 0:00:10.5]} 69... Qf2 {[%clk 0:00:26.3]}
70. Qg5 {[%clk 0:00:09.7]} 70... g2 {[%clk 0:00:27]} 71. a5 {[%clk 0:00:11.1]}
71... Kf1 {[%clk 0:00:27.4]} 72. Qb5+ {[%clk 0:00:10.7]} 72... Qe2 {[%clk
0:00:28.3]} 73. Qf5+ {[%clk 0:00:12.1]} 73... Ke1 {[%clk 0:00:29.4]} 74. Qg5
{[%clk 0:00:12.8]} 74... Qf1 {[%clk 0:00:28.5]} 75. Qe5+ {[%clk 0:00:11.7]}
75... Kf2+ {[%clk 0:00:28.9]} 76. Ka2 {[%clk 0:00:11.8]} 76... g1=Q {[%clk
0:00:30.8]} 77. Qf4+ {[%clk 0:00:11.7]} 77... Ke1 {[%clk 0:00:32.7]} 78. Qc1+
{[%clk 0:00:12.1]} 78... Ke2 {[%clk 0:00:33.9]} 79. Qc2+ {[%clk 0:00:13.3]}
79... Kf3 {[%clk 0:00:35.2]} 80. Qf5+ {[%clk 0:00:14]} 80... Ke3 {[%clk
0:00:34.9]} 81. Qe5+ {[%clk 0:00:14.9]} 81... Kd2 {[%clk 0:00:36.2]} 82. Qc3+
{[%clk 0:00:14.6]} 82... Kd1 {[%clk 0:00:37.5]} 83. Qb3+ {[%clk 0:00:13.3]}
83... Ke1 {[%clk 0:00:38.2]} 84. Qc3+ {[%clk 0:00:14.1]} 84... Kf2 {[%clk
0:00:39.4]} 85. Qd4+ {[%clk 0:00:12.2]} 85... Kf3 {[%clk 0:00:39.1]} 86. Qf6+
{[%clk 0:00:12]} 86... Kg2 {[%clk 0:00:39.1]} 87. Qg5+ {[%clk 0:00:12.1]} 87...
Kh1 {[%clk 0:00:40]} 88. Qh4+ {[%clk 0:00:10]} 88... Qh2 {[%clk 0:00:38.9]} 89.
Qe4+ {[%clk 0:00:11.3]} 89... Qhg2 {[%clk 0:00:40.1]} 90. Qh4+ {[%clk
0:00:11.2]} 90... Kg1 {[%clk 0:00:41.3]} 91. Qd4+ {[%clk 0:00:11.3]} 91... Qff2
{[%clk 0:00:39.4]} 92. Qd1+ {[%clk 0:00:11.7]} 92... Kh2 {[%clk 0:00:38.7]} 93.
Qh5+ {[%clk 0:00:12.3]} 93... Qh3 {[%clk 0:00:40]} 94. Qe5+ {[%clk 0:00:12.6]}
94... Qhg3 {[%clk 0:00:40.9]} 95. Qh5+ {[%clk 0:00:13.3]} 95... Kg2 {[%clk
0:00:41.8]} 96. Qd5+ {[%clk 0:00:14.6]} 96... Qff3 {[%clk 0:00:42.8]} 97. Qd2+
{[%clk 0:00:15.4]} 97... Kh3 {[%clk 0:00:43.1]} 98. Qh6+ {[%clk 0:00:16.7]}
98... Qh4 {[%clk 0:00:44.3]} 99. Qe6+ {[%clk 0:00:17.1]} 99... Qhg4 {[%clk
0:00:45.6]} 100. Qh6+ {[%clk 0:00:17.5]} 100... Kg2 {[%clk 0:00:46.6]} 101. Qd2+
{[%clk 0:00:17.1]} 101... Qe2 {[%clk 0:00:47.9]} 102. Qd5+ {[%clk 0:00:17.1]}
102... Qee4 {[%clk 0:00:48.9]} 103. Qd2+ {[%clk 0:00:16.8]} 103... Kh3 {[%clk
0:00:50]} 104. Qh6+ {[%clk 0:00:17]} 104... Kg3 {[%clk 0:00:50.6]} 105. Qd6+
{[%clk 0:00:16.7]} 105... Qgf4 {[%clk 0:00:51.9]} 106. Qa3+ {[%clk 0:00:14.3]}
106... Kh2 {[%clk 0:00:47.4]} 107. a6 {[%clk 0:00:08.4]} 107... Qa4 {[%clk
0:00:46.9]} 108. a7 {[%clk 0:00:08.1]} 108... Qfc4+ {[%clk 0:00:46.8]} 109. Kb1
{[%clk 0:00:05]} 109... Qxa3 {[%clk 0:00:46.7]} 110. bxa3 {[%clk 0:00:06.9]}
110... Qb3+ {[%clk 0:00:47.5]} 111. Kc1 {[%clk 0:00:06.9]} 111... Qxa3+ {[%clk
0:00:49.4]} 0-1

[Event "*** Titled Tuesday 3|2 Blitz"]
[Site "Chess.com"]
[Date "2017.06.06"]
[Round "3"]
[White "MyleneFarmer"]
[Black "Indianlad"]
[Result "0-1"]
[WhiteElo "2376"]
[BlackElo "2584"]
[TimeControl "180+2"]
[EndTime "14:21:30 PDT"]
[Termination "Indianlad won by resignation"]

1. e4 {[%clk 0:03:02]} 1... c5 {[%clk 0:03:00.5]} 2. Nf3 {[%clk 0:03:02.9]} 2...
d6 {[%clk 0:03:01.9]} 3. d4 {[%clk 0:03:04]} 3... cxd4 {[%clk 0:03:03.8]} 4.
Qxd4 {[%clk 0:03:05.7]} 4... Bd7 {[%clk 0:03:02.8]} 5. c4 {[%clk 0:02:58.7]}
5... Nc6 {[%clk 0:03:02.2]} 6. Qe3 {[%clk 0:03:00.3]} 6... g6 {[%clk 0:03:02.7]}
7. Nc3 {[%clk 0:03:00.9]} 7... Bg7 {[%clk 0:03:03.6]} 8. Be2 {[%clk 0:03:00.9]}
8... Nf6 {[%clk 0:03:05.5]} 9. O-O {[%clk 0:02:59.6]} 9... O-O {[%clk
0:03:07.4]} 10. h3 {[%clk 0:03:00.3]} 10... Rc8 {[%clk 0:03:07.8]} 11. Rb1
{[%clk 0:02:58.9]} 11... a6 {[%clk 0:02:50.8]} 12. Rd1 {[%clk 0:02:52.9]} 12...
Qa5 {[%clk 0:02:29.9]} 13. Bd2 {[%clk 0:02:52.7]} 13... Ne5 {[%clk 0:02:20.7]}
14. Nd5 {[%clk 0:02:32.6]} 14... Nxd5 {[%clk 0:02:18]} 15. exd5 {[%clk
0:02:25.3]} 15... Nxf3+ {[%clk 0:02:09.8]} 16. Bxf3 {[%clk 0:02:23.3]} 16...
Qxa2 {[%clk 0:02:07.4]} 17. Qxe7 {[%clk 0:02:23.8]} 17... Bf5 {[%clk 0:02:05.7]}
18. Ra1 {[%clk 0:02:23.4]} 18... Qxb2 {[%clk 0:02:05.9]} 19. Qxb7 {[%clk
0:02:24]} 19... Qxb7 {[%clk 0:02:05.7]} 0-1

[Event "*** Titled Tuesday 3|2 Blitz"]
[Site "Chess.com"]
[Date "2017.06.06"]
[Round "3"]
[White "Ar4uha"]
[Black "Elshan1985"]
[Result "0-1"]
[WhiteElo "2409"]
[BlackElo "2551"]
[TimeControl "180+2"]
[EndTime "14:22:31 PDT"]
[Termination "Elshan1985 won by resignation"]

1. e4 {[%clk 0:02:38.7]} 1... c5 {[%clk 0:02:58.3]} 2. Nf3 {[%clk 0:02:32.4]}
2... e6 {[%clk 0:02:58.7]} 3. c3 {[%clk 0:02:31.5]} 3... d5 {[%clk 0:02:54.7]}
4. exd5 {[%clk 0:02:33.4]} 4... exd5 {[%clk 0:02:55.7]} 5. d4 {[%clk 0:02:35]}
5... Nf6 {[%clk 0:02:55.9]} 6. Bb5+ {[%clk 0:02:35.7]} 6... Nc6 {[%clk
0:02:55.8]} 7. O-O {[%clk 0:02:36.5]} 7... Be7 {[%clk 0:02:55.4]} 8. dxc5 {[%clk
0:02:37.8]} 8... Bxc5 {[%clk 0:02:56.2]} 9. Re1+ {[%clk 0:02:38.7]} 9... Be6
{[%clk 0:02:56.4]} 10. Nd4 {[%clk 0:02:36.2]} 10... O-O {[%clk 0:02:57.2]} 11.
Be3 {[%clk 0:02:36.6]} 11... Bg4 {[%clk 0:02:53]} 12. f3 {[%clk 0:02:27.8]}
12... Bh5 {[%clk 0:02:53.5]} 13. Bxc6 {[%clk 0:01:52]} 13... bxc6 {[%clk
0:02:44.8]} 14. Nd2 {[%clk 0:01:53.5]} 14... Qd7 {[%clk 0:02:41]} 15. N2b3
{[%clk 0:01:46.8]} 15... Bd6 {[%clk 0:02:41.3]} 16. Nc2 {[%clk 0:01:42.8]} 16...
Rfe8 {[%clk 0:02:41.4]} 17. Qd2 {[%clk 0:01:43]} 17... Bg6 {[%clk 0:02:41.8]}
18. Bc5 {[%clk 0:01:42]} 18... Bc7 {[%clk 0:02:41.4]} 19. Ncd4 {[%clk
0:01:43.3]} 19... Nh5 {[%clk 0:02:41]} 20. Rxe8+ {[%clk 0:01:44.1]} 20... Rxe8
{[%clk 0:02:41]} 21. Re1 {[%clk 0:01:46]} 21... Rxe1+ {[%clk 0:02:39.8]} 22.
Qxe1 {[%clk 0:01:47]} 22... a5 {[%clk 0:02:39.1]} 23. Nd2 {[%clk 0:01:45.1]}
23... Nf4 {[%clk 0:02:39.4]} 24. Ba3 {[%clk 0:01:43.4]} 24... Nd3 {[%clk
0:02:34.8]} 25. Qe3 {[%clk 0:01:43.2]} 25... Bf4 {[%clk 0:02:33.2]} 26. Qe2
{[%clk 0:01:44.3]} 26... c5 {[%clk 0:02:33.3]} 27. N4b3 {[%clk 0:01:38.4]} 27...
c4 {[%clk 0:02:28.2]} 28. Nc5 {[%clk 0:01:39.2]} 28... Qc8 {[%clk 0:02:23.8]}
29. Nxd3 {[%clk 0:01:35.7]} 29... cxd3 {[%clk 0:02:24.5]} 30. Qf2 {[%clk
0:01:37.2]} 30... d4 {[%clk 0:02:25.9]} 31. c4 {[%clk 0:01:34.1]} 31... Be3
{[%clk 0:02:26.8]} 0-1

[Event "*** Titled Tuesday 3|2 Blitz"]
[Site "Chess.com"]
[Date "2017.06.06"]
[Round "3"]
[White "ProfCalculus"]
[Black "metalbattler"]
[Result "0-1"]
[WhiteElo "2155"]
[BlackElo "2038"]
[TimeControl "180+2"]
[EndTime "14:23:19 PDT"]
[Termination "metalbattler won by resignation"]

1. d4 {[%clk 0:03:02]} 1... d5 {[%clk 0:02:59.5]} 2. c4 {[%clk 0:03:02.8]} 2...
c6 {[%clk 0:03:00.9]} 3. Nc3 {[%clk 0:03:03.6]} 3... Nf6 {[%clk 0:03:02.2]} 4.
e3 {[%clk 0:03:04.2]} 4... e6 {[%clk 0:03:03.5]} 5. Nf3 {[%clk 0:03:04.6]} 5...
Nbd7 {[%clk 0:03:04.9]} 6. Qc2 {[%clk 0:03:05.6]} 6... Bd6 {[%clk 0:03:04.7]} 7.
g4 {[%clk 0:03:06.5]} 7... Nxg4 {[%clk 0:03:05.1]} 8. Rg1 {[%clk 0:03:06.3]}
8... Nh6 {[%clk 0:03:06.4]} 9. Rxg7 {[%clk 0:03:04.9]} 9... Qf6 {[%clk
0:02:45.8]} 10. Rxh7 {[%clk 0:02:58.2]} 10... Rxh7 {[%clk 0:02:41]} 11. Qxh7
{[%clk 0:02:58]} 11... Nf8 {[%clk 0:02:41.8]} 12. Qc2 {[%clk 0:02:37.3]} 12...
Qxf3 {[%clk 0:02:41.8]} 13. Bd2 {[%clk 0:02:37.7]} 13... Nf5 {[%clk 0:02:32.2]}
14. Rc1 {[%clk 0:02:12.1]} 14... Ng6 {[%clk 0:02:21.7]} 15. Bd3 {[%clk
0:02:07.9]} 15... Ngh4 {[%clk 0:02:05.9]} 16. Bxf5 {[%clk 0:01:40.3]} 16... Nxf5
{[%clk 0:01:56.4]} 17. cxd5 {[%clk 0:01:33.9]} 17... exd5 {[%clk 0:01:56.1]} 18.
Qd3 {[%clk 0:01:23.8]} 18... Be6 {[%clk 0:01:55.1]} 19. Na4 {[%clk 0:00:50.9]}
19... Nh4 {[%clk 0:01:50.6]} 20. b4 {[%clk 0:00:44.1]} 20... Qh1+ {[%clk
0:01:50.9]} 0-1

[Event "*** Titled Tuesday 3|2 Blitz"]
[Site "Chess.com"]
[Date "2017.06.06"]
[Round "3"]
[White "Federtiu"]
[Black "RD4ever"]
[Result "1-0"]
[WhiteElo "2426"]
[BlackElo "2590"]
[TimeControl "180+2"]
[EndTime "14:23:36 PDT"]
[Termination "Federtiu won by resignation"]

1. c4 {[%clk 0:03:02]} 1... e5 {[%clk 0:02:57.1]} 2. Nc3 {[%clk 0:03:02.4]} 2...
Bb4 {[%clk 0:02:57.8]} 3. Qc2 {[%clk 0:03:02]} 3... Nf6 {[%clk 0:02:58]} 4. Nf3
{[%clk 0:02:59.5]} 4... Qe7 {[%clk 0:02:56.5]} 5. e3 {[%clk 0:02:55.3]} 5... c6
{[%clk 0:02:43.9]} 6. a3 {[%clk 0:02:49.3]} 6... Ba5 {[%clk 0:02:44.7]} 7. b4
{[%clk 0:02:47.7]} 7... Bc7 {[%clk 0:02:42.6]} 8. d4 {[%clk 0:02:48.9]} 8... d6
{[%clk 0:02:34.3]} 9. Bb2 {[%clk 0:02:39.3]} 9... O-O {[%clk 0:02:30.9]} 10.
dxe5 {[%clk 0:02:18.8]} 10... dxe5 {[%clk 0:02:30.7]} 11. Bd3 {[%clk 0:02:20.1]}
11... h6 {[%clk 0:02:22.7]} 12. O-O {[%clk 0:02:08.1]} 12... Bg4 {[%clk
0:02:21.1]} 13. Nd2 {[%clk 0:02:08.5]} 13... Nbd7 {[%clk 0:02:13.1]} 14. c5
{[%clk 0:02:06.3]} 14... Rae8 {[%clk 0:02:05.5]} 15. f3 {[%clk 0:01:52.8]} 15...
Be6 {[%clk 0:02:02.8]} 16. Rad1 {[%clk 0:01:53.4]} 16... Nd5 {[%clk 0:01:57.7]}
17. Nc4 {[%clk 0:01:42.3]} 17... f5 {[%clk 0:01:52.6]} 18. e4 {[%clk 0:01:41.1]}
18... fxe4 {[%clk 0:01:40.5]} 19. Nxe4 {[%clk 0:01:42]} 19... Nf4 {[%clk
0:01:42]} 20. Ned6 {[%clk 0:01:35.5]} 20... Rb8 {[%clk 0:01:38]} 21. Rde1 {[%clk
0:01:22.2]} 21... Qg5 {[%clk 0:01:33.9]} 22. Nxe5 {[%clk 0:01:13]} 22... Bh3
{[%clk 0:01:14.1]} 23. Bh7+ {[%clk 0:01:12.6]} 23... Kh8 {[%clk 0:01:14.7]} 24.
Nef7+ {[%clk 0:01:11.5]} 1-0

[Event "*** Titled Tuesday 3|2 Blitz"]
[Site "Chess.com"]
[Date "2017.06.06"]
[Round "3"]
[White "Jadeit90"]
[Black "AndrewDGreen"]
[Result "1-0"]
[WhiteElo "2163"]
[BlackElo "2181"]
[TimeControl "180+2"]
[EndTime "14:23:49 PDT"]
[Termination "Jadeit90 won by resignation"]

1. g3 {[%clk 0:03:02]} 1... g6 {[%clk 0:02:54]} 2. Bg2 {[%clk 0:03:01.9]} 2...
Bg7 {[%clk 0:02:52.9]} 3. Nf3 {[%clk 0:03:02.7]} 3... c5 {[%clk 0:02:49.1]} 4.
O-O {[%clk 0:03:03.7]} 4... Nc6 {[%clk 0:02:49]} 5. c4 {[%clk 0:03:05.6]} 5...
d6 {[%clk 0:02:47.3]} 6. Nc3 {[%clk 0:03:07.5]} 6... Bf5 {[%clk 0:02:46.2]} 7.
d3 {[%clk 0:03:02.1]} 7... Qd7 {[%clk 0:02:46.8]} 8. e4 {[%clk 0:03:03.4]} 8...
Bg4 {[%clk 0:02:40.4]} 9. Be3 {[%clk 0:03:04.6]} 9... e6 {[%clk 0:02:33.1]} 10.
Qd2 {[%clk 0:03:05.7]} 10... Nge7 {[%clk 0:02:19]} 11. Nh4 {[%clk 0:03:02.9]}
11... e5 {[%clk 0:02:04.5]} 12. f3 {[%clk 0:03:03]} 12... Bh3 {[%clk 0:01:55.7]}
13. f4 {[%clk 0:03:00.7]} 13... Bxg2 {[%clk 0:01:52.3]} 14. Kxg2 {[%clk
0:03:02.6]} 14... f6 {[%clk 0:01:53.4]} 15. Nd5 {[%clk 0:03:01.3]} 15... Nxd5
{[%clk 0:01:53.2]} 16. cxd5 {[%clk 0:03:02.2]} 16... Ne7 {[%clk 0:01:50.7]} 17.
f5 {[%clk 0:03:03.1]} 17... g5 {[%clk 0:01:49.7]} 18. Nf3 {[%clk 0:03:03.9]}
18... h5 {[%clk 0:01:40.1]} 19. Nxg5 {[%clk 0:03:03.7]} 19... fxg5 {[%clk
0:01:36.8]} 20. f6 {[%clk 0:03:05]} 20... Bxf6 {[%clk 0:01:33.4]} 21. Rxf6
{[%clk 0:03:06.9]} 21... h4 {[%clk 0:01:32.8]} 22. Bxg5 {[%clk 0:03:04.3]} 22...
hxg3 {[%clk 0:01:29]} 23. h4 {[%clk 0:03:02]} 23... O-O-O {[%clk 0:01:20.9]} 24.
Re6 {[%clk 0:02:58]} 24... Rde8 {[%clk 0:01:19.8]} 25. Kxg3 {[%clk 0:02:57.5]}
25... Kb8 {[%clk 0:01:20]} 26. Rf1 {[%clk 0:02:54.1]} 26... Rhf8 {[%clk
0:01:10.4]} 27. Rxf8 {[%clk 0:02:53.9]} 27... Rxf8 {[%clk 0:01:11.6]} 28. Rxe7
{[%clk 0:02:55]} 28... Qa4 {[%clk 0:01:08.2]} 29. Re6 {[%clk 0:02:43.9]} 29...
Qxa2 {[%clk 0:01:05.9]} 30. Rxd6 {[%clk 0:02:40.9]} 30... Qb1 {[%clk 0:01:05.9]}
31. Rf6 {[%clk 0:02:32.9]} 31... Qg1+ {[%clk 0:00:45.1]} 32. Qg2 {[%clk
0:02:33.6]} 32... Qe1+ {[%clk 0:00:41]} 33. Qf2 {[%clk 0:02:34.6]} 1-0

[Event "*** Titled Tuesday 3|2 Blitz"]
[Site "Chess.com"]
[Date "2017.06.06"]
[Round "3"]
[White "anon102030"]
[Black "Ivan11Martic"]
[Result "1/2-1/2"]
[WhiteElo "2586"]
[BlackElo "2403"]
[TimeControl "180+2"]
[EndTime "14:24:17 PDT"]
[Termination "Game drawn by agreement"]

1. e4 {[%clk 0:03:02]} 1... c5 {[%clk 0:03:00.4]} 2. Nc3 {[%clk 0:03:03.3]} 2...
Nc6 {[%clk 0:03:01]} 3. g3 {[%clk 0:03:05.2]} 3... g6 {[%clk 0:03:01.4]} 4. Bg2
{[%clk 0:03:07.1]} 4... Bg7 {[%clk 0:03:03.1]} 5. d3 {[%clk 0:03:09]} 5... d6
{[%clk 0:03:03]} 6. Be3 {[%clk 0:03:09.9]} 6... e5 {[%clk 0:03:02.5]} 7. f4
{[%clk 0:03:10]} 7... Nge7 {[%clk 0:02:57.8]} 8. Nf3 {[%clk 0:03:11.1]} 8... Nd4
{[%clk 0:02:51.6]} 9. Qd2 {[%clk 0:03:06.7]} 9... Bg4 {[%clk 0:02:44.2]} 10. O-O
{[%clk 0:03:04.8]} 10... Qd7 {[%clk 0:02:42.1]} 11. Rf2 {[%clk 0:02:36.5]} 11...
O-O {[%clk 0:02:41.4]} 12. Raf1 {[%clk 0:02:36.3]} 12... f6 {[%clk 0:02:36.6]}
13. Nh4 {[%clk 0:02:29.6]} 13... Bh6 {[%clk 0:02:18.2]} 14. Nd1 {[%clk
0:02:12.4]} 14... Rae8 {[%clk 0:02:09.1]} 15. fxe5 {[%clk 0:02:09]} 15... Bxe3
{[%clk 0:02:06.8]} 16. Nxe3 {[%clk 0:02:10.3]} 16... fxe5 {[%clk 0:02:04.4]} 17.
c3 {[%clk 0:02:07.2]} 17... Ndc6 {[%clk 0:01:54.2]} 18. Nd5 {[%clk 0:01:36.3]}
18... Nxd5 {[%clk 0:01:50.2]} 19. exd5 {[%clk 0:01:36.2]} 19... Nd8 {[%clk
0:01:38.9]} 20. Be4 {[%clk 0:01:31.3]} 20... Bh3 {[%clk 0:01:35.9]} 21. Rxf8+
{[%clk 0:01:24.3]} 21... Rxf8 {[%clk 0:01:37.8]} 22. Rxf8+ {[%clk 0:01:25.1]}
22... Kxf8 {[%clk 0:01:39.7]} 23. Qh6+ {[%clk 0:01:25.5]} 23... Kg8 {[%clk
0:01:38]} 24. Qg5 {[%clk 0:00:36.9]} 24... Nf7 {[%clk 0:01:23.5]} 25. Qf6 {[%clk
0:00:35.7]} 1/2-1/2

[Event "*** Titled Tuesday 3|2 Blitz"]
[Site "Chess.com"]
[Date "2017.06.06"]
[Round "3"]
[White "catalin009"]
[Black "Saitama_Hero"]
[Result "0-1"]
[WhiteElo "2297"]
[BlackElo "2229"]
[TimeControl "180+2"]
[EndTime "14:24:28 PDT"]
[Termination "Saitama_Hero won by resignation"]

1. c4 {[%clk 0:03:02]} 1... Nf6 {[%clk 0:02:54.5]} 2. d4 {[%clk 0:03:02.5]} 2...
e6 {[%clk 0:02:56]} 3. Nc3 {[%clk 0:03:03.9]} 3... d5 {[%clk 0:02:57]} 4. Nf3
{[%clk 0:03:02.7]} 4... c6 {[%clk 0:02:53.7]} 5. Bg5 {[%clk 0:03:03.2]} 5...
Nbd7 {[%clk 0:02:54.6]} 6. e3 {[%clk 0:02:59.8]} 6... Qa5 {[%clk 0:02:54.5]} 7.
Nd2 {[%clk 0:02:56.4]} 7... Bb4 {[%clk 0:02:53.9]} 8. Qb3 {[%clk 0:02:51.2]}
8... O-O {[%clk 0:02:47.1]} 9. a3 {[%clk 0:02:42.3]} 9... Be7 {[%clk 0:02:44.3]}
10. Bh4 {[%clk 0:02:35.8]} 10... e5 {[%clk 0:02:44.2]} 11. dxe5 {[%clk
0:02:35.5]} 11... Nxe5 {[%clk 0:02:44.3]} 12. cxd5 {[%clk 0:02:35.6]} 12... Nxd5
{[%clk 0:02:41.9]} 13. Bxe7 {[%clk 0:02:33.8]} 13... Nxe7 {[%clk 0:02:43.8]} 14.
Be2 {[%clk 0:02:34.6]} 14... Be6 {[%clk 0:02:43.8]} 15. Qc2 {[%clk 0:02:35.1]}
15... Nd5 {[%clk 0:02:23.9]} 16. Nxd5 {[%clk 0:02:29]} 16... Bxd5 {[%clk
0:02:20.2]} 17. O-O {[%clk 0:02:30.4]} 17... Rad8 {[%clk 0:02:18.5]} 18. Rfd1
{[%clk 0:02:25.6]} 18... Qc7 {[%clk 0:02:16.1]} 19. Ne4 {[%clk 0:02:12.7]} 19...
Rfe8 {[%clk 0:02:11.8]} 20. Nc3 {[%clk 0:02:08.3]} 20... Be6 {[%clk 0:02:10.4]}
21. Qa4 {[%clk 0:02:04.6]} 21... b5 {[%clk 0:02:07.6]} 22. Qf4 {[%clk
0:02:02.3]} 22... f6 {[%clk 0:02:02.7]} 23. Rac1 {[%clk 0:02:00.3]} 23... Bb3
{[%clk 0:01:56.4]} 24. Rxd8 {[%clk 0:01:59.5]} 24... Rxd8 {[%clk 0:01:58.3]} 25.
Nxb5 {[%clk 0:01:58.1]} 25... Qb6 {[%clk 0:01:54.1]} 26. Nd4 {[%clk 0:01:56.3]}
26... c5 {[%clk 0:01:54.5]} 27. Nf5 {[%clk 0:00:57.5]} 27... Be6 {[%clk
0:01:47.5]} 28. Ng3 {[%clk 0:00:43.8]} 28... Qxb2 {[%clk 0:01:39.9]} 29. Rxc5
{[%clk 0:00:44.7]} 29... Qxe2 {[%clk 0:01:39.5]} 30. h4 {[%clk 0:00:34.7]} 30...
Qe1+ {[%clk 0:01:33.5]} 31. Kh2 {[%clk 0:00:35.5]} 31... Ng4+ {[%clk 0:01:31.1]}
0-1